bitfinex/quotes_ETHUSD_20220105
["timestamp","ask_amount","ask_price","bid_price","bid_amount"]
[1641423322239,0.00284211,3517.6,3516.7,0.60211391]
[1641423322240,0.00284211,3517.6,3517.5,47.10632869]
[1641423322446,3.48847996,3518.6,3517.5,47.10632869]
[1641423322642,3.48847996,3518.6,3518.5,2.75632869]
[1641423322844,3.14347996,3518.6,3518.5,2.75632869]
[1641423323042,6.74677578,3519.5,3518.6,44.3]
[1641423323243,0.345,3519.5,3519.0,2.75632869]
[1641423323442,6.40177578,3520.0,3519.4,47.05632869]
[1641423323647,6.40177578,3520.0,3519.9,47.05632869]
[1641423323648,2.79917578,3520.0,3519.9,47.05632869]
[1641423323886,8.00221972,3520.6,3520.0,41.5]
[1641423324086,8.00221972,3520.6,3520.5,2.75632869]
[1641423324290,8.00221972,3520.6,3520.5,2.25632869]
[1641423324691,9.42288972,3522.0,3520.5,2.05632869]
[1641423324891,0.01202069,3521.9,3521.8,2.05632869]
[1641423325092,8.00221972,3522.0,3519.6,0.01238974]
[1641423325093,0.02216851,3521.0,3519.6,1.01238974]
[1641423325293,0.02216851,3521.0,3520.9,43.55632869]
[1641423325493,8.00221972,3522.0,3520.9,43.55632869]
[1641423325692,8.00221972,3522.0,3521.0,2.9537723]
[1641423325891,8.00221972,3522.0,3521.9,2.05632869]
[1641423326094,0.11168319,3522.1,3521.9,2.05632869]
[1641423326396,8.00221972,3523.2,3522.2,4.70559709]
[1641423326593,8.00221972,3523.2,3523.1,2.05632869]
[1641423327742,0.7137971,3524.2,3523.1,2.05632869]
[1641423328148,0.00966319,3523.7,3523.1,2.05632869]
[1641423328347,0.00966319,3523.7,3522.6,2.05632869]
[1641423328548,0.07464376,3523.6,3523.1,2.05632869]
[1641423328950,0.00852635,3523.5,3523.1,2.05632869]
[1641423329348,0.00795792,3523.4,3523.1,2.05632869]
[1641423329753,0.0073895,3523.3,3523.1,2.05632869]
[1641423330147,0.00682108,3523.2,3523.1,2.05632869]
[1641423331148,0.00682108,3523.2,3522.5,2.05632869]
[1641423331394,0.00682108,3523.2,3522.6,2.05632869]
[1641423331593,0.00625265,3523.1,3522.6,2.05632869]
[1641423331794,0.00625265,3523.1,3523.0,2.05632869]
[1641423331993,0.70989,3523.6,3523.0,2.05632869]
[1641423332193,0.06554899,3524.0,3523.5,2.05632869]
[1641423332394,0.7137971,3524.2,3523.5,2.05632869]
[1641423332599,0.7137971,3524.2,3522.5,0.5]
[1641423332797,0.01193689,3524.1,3523.5,2.05632869]
[1641423333198,4.81489521,3523.7,3523.5,2.05632869]
[1641423333600,0.00909477,3523.6,3523.5,2.05632869]
[1641423334801,0.00909477,3523.6,3523.5,2.05766443]
[1641423335239,0.20909477,3523.6,3523.5,2.05766443]
[1641423335640,0.7137971,3524.2,3523.5,43.45766443]
[1641423335841,0.7137971,3524.2,3524.1,2.05632869]
[1641423336640,4.81489521,3524.9,3524.1,2.05632869]
[1641423336842,4.81489521,3524.9,3523.7,0.7094636]
[1641423336843,4.81489521,3524.9,3524.6,2.05632869]
[1641423337040,0.00625266,3524.7,3524.6,2.05632869]
[1641423342098,0.00625266,3524.7,3524.6,43.45632869]
[1641423342752,4.81489521,3525.7,3524.6,43.46924661]
[1641423342947,4.81489521,3525.7,3525.6,2.05632869]
[1641423343344,4.81489521,3526.0,3525.6,2.05632869]
[1641423344752,4.81489521,3526.1,3525.6,2.05632869]
[1641423345046,4.81489521,3526.1,3526.0,2.05632869]
[1641423345446,4.05965314,3526.1,3526.0,43.40632869]
[1641423345648,5.314e-05,3526.1,3526.0,2.05632869]
[1641423345847,0.7137971,3526.3,3526.1,38.5]
[1641423346790,0.7137971,3526.3,3526.2,38.51224052]
[1641423346989,0.6637971,3526.3,3526.2,38.51224052]
[1641423347191,0.66493394,3526.3,3526.2,38.51224052]
[1641423348291,6.41947254,3527.5,3526.3,0.66493394]
[1641423348490,6.41947254,3527.5,3527.4,2.05632869]
[1641423349092,6.41947254,3527.7,3527.4,2.05632869]
[1641423349693,0.01247292,3527.5,3526.3,0.66493394]
[1641423350144,0.00625266,3527.4,3526.3,0.66493394]
[1641423350543,0.00568424,3527.3,3526.3,0.66493394]
[1641423350942,0.01247292,3527.5,3525.6,1.45705449]
[1641423350943,102.25,3526.8,3525.6,1.45705449]
[1641423351143,102.25,3526.8,3525.2,16.71]
[1641423351342,0.0022737,3526.7,3525.7,0.00341054]
[1641423351741,0.00170528,3526.6,3525.7,0.00341054]
[1641423352142,0.00113685,3526.5,3525.2,2.86975259]
[1641423352347,0.00113685,3526.5,3525.2,0.00625265]
[1641423352547,5.24044375,3526.7,3525.3,0.00568423]
[1641423352744,5.24044375,3526.7,3525.2,0.00625265]
[1641423352945,0.00170528,3526.6,3525.2,0.00625265]
[1641423353343,0.00113685,3526.5,3525.2,0.00625265]
[1641423353643,4.81149152,3526.7,3525.2,0.00625265]
[1641423353644,0.00170528,3526.6,3525.2,0.00625265]
[1641423354086,0.00113685,3526.5,3525.2,0.00625265]
[1641423354287,0.00113685,3526.5,3525.2,2.82132664]
[1641423354488,0.00170528,3526.6,3525.2,0.00625265]
[1641423354789,0.00113685,3526.5,3525.2,2.8448774]
[1641423354990,0.00113685,3526.5,3525.2,0.20625265]
[1641423355193,4.81149152,3526.9,3525.3,0.00568423]
[1641423355591,0.71201212,3526.8,3525.3,0.00568423]
[1641423355800,0.345,3526.7,3525.3,0.00568423]
[1641423355990,0.01234442,3526.5,3525.4,0.00087376]
[1641423356192,1.41877,3526.1,3525.4,0.00087376]
[1641423356391,1.41877,3526.1,3525.5,0.00454738]
[1641423356592,2.01877,3526.1,3525.5,0.00454738]
[1641423356791,0.70938,3525.8,3525.5,0.00454738]
[1641423357292,0.65938,3525.8,3525.5,0.00454738]
[1641423357491,0.95938,3525.8,3525.5,0.00454738]
[1641423357934,1.25938,3525.8,3525.5,0.00454738]
[1641423358341,102.25,3525.7,3525.4,0.00087376]
[1641423358541,2.41902,3525.6,3525.4,0.00087376]
[1641423358942,2.71902,3525.6,3525.4,0.00087376]
[1641423359143,1.41902,3525.6,3525.4,0.00087376]
[1641423359541,88.30949,3525.5,3524.3,0.27639994]
[1641423359747,1.41915,3525.0,3524.3,0.27639994]
[1641423359942,1.41915,3525.0,3524.4,0.00625266]
[1641423360143,0.3,3525.5,3524.4,0.00625266]
[1641423360345,0.3,3525.6,3523.8,0.0096632]
[1641423360346,5.24044375,3525.6,3523.8,0.0096632]
[1641423360544,0.70946,3525.2,3523.8,0.0096632]
[1641423360743,5.24044375,3525.6,3523.8,0.0096632]
[1641423360943,1.41892,3525.5,3523.8,0.0096632]
[1641423361144,3.12881,3525.5,3523.8,0.0096632]
[1641423361396,0.345,3525.4,3523.8,0.0096632]
[1641423361584,0.345,3525.4,3523.3,2.90871426]
[1641423361585,0.345,3525.4,3523.7,0.01023163]
[1641423361884,0.70952,3524.9,3523.7,2.91894589]
[1641423362083,0.3,3524.9,3523.7,0.01023163]
[1641423362291,0.3,3524.9,3523.8,0.0096632]
[1641423362487,1.41912,3525.0,3523.7,2.91894589]
[1641423362488,2.01912,3525.0,3523.7,2.91894589]
[1641423362689,0.6,3525.0,3523.8,0.0096632]
[1641423362895,0.70964,3524.4,3523.8,0.0096632]
[1641423363091,0.70964,3524.4,3523.3,2.90871426]
[1641423363092,0.70964,3524.4,3523.5,0.01136847]
[1641423363288,0.70964,3524.4,3523.4,0.0119369]
[1641423363689,0.70964,3524.4,3523.2,0.01307374]
[1641423363889,1.00964,3524.4,3523.2,0.01307374]
[1641423364089,0.6,3524.4,3523.2,0.01307374]
[1641423364289,0.70974,3523.8,3523.2,0.01307374]
[1641423364491,0.70974,3523.8,3522.7,0.01591586]
[1641423364693,0.70974,3523.8,3522.5,0.01705271]
[1641423364890,0.70974,3523.8,3522.3,0.01818955]
[1641423365135,1.30974,3523.8,3522.3,0.01818955]
[1641423365343,0.70983,3523.2,3522.3,0.01818955]
[1641423365642,0.70983,3523.2,3522.2,4.67378664]
[1641423365643,0.00454738,3523.1,3522.2,4.67378664]
[1641423366041,0.00397896,3523.0,3522.2,4.67378664]
[1641423366443,0.00341054,3522.9,3522.2,4.67378664]
[1641423366643,0.00341054,3522.9,3522.3,0.00124625]
[1641423366845,0.70983,3523.2,3522.3,0.00124625]
[1641423366846,0.00284211,3522.8,3522.3,0.00124625]
[1641423367243,0.70983,3523.2,3522.3,0.00124625]
[1641423367244,0.00227369,3522.7,3522.3,0.00124625]
[1641423367645,0.00170527,3522.6,3522.3,0.00124625]
[1641423368044,0.00113684,3522.5,3522.3,0.00124625]
[1641423368444,0.00454738,3523.1,3522.3,0.00124625]
[1641423368883,0.00397896,3523.0,3522.2,4.37503289]
[1641423369284,1.41966,3523.5,3522.2,4.37503289]
[1641423369285,0.00341054,3522.9,3522.2,4.37503289]
[1641423369685,0.00284211,3522.8,3522.2,4.37503289]
[1641423370089,0.00227369,3522.7,3522.2,4.37503289]
[1641423370590,0.00170527,3522.6,3522.2,4.37503289]
[1641423370991,1.41966,3523.5,3522.2,4.37503289]
[1641423370992,0.00113684,3522.5,3522.2,4.37503289]
[1641423371390,0.70985,3523.0,3522.2,4.37503289]
[1641423371790,0.00341054,3522.9,3522.2,4.37503289]
[1641423372191,0.00284211,3522.8,3522.2,4.37503289]
[1641423372637,0.00227369,3522.7,3522.2,4.37503289]
[1641423372841,2.13044,3522.5,3521.5,2.75532467]
[1641423373039,2.43044,3522.5,3521.5,2.75532467]
[1641423373241,2.73044,3522.5,3521.6,0.00397897]
[1641423373838,0.71018,3521.8,3521.1,0.00682109]
[1641423376390,0.71003,3522.1,3521.1,0.00682109]
[1641423376997,1.01003,3522.1,3521.1,0.00682109]
[1641423377199,0.01211345,3521.9,3521.1,0.00682109]
[1641423377395,0.01211345,3521.9,3521.2,0.00124886]
[1641423377895,1.6,3522.1,3521.3,0.00568424]
[1641423377896,0.6,3522.1,3521.3,0.00568424]
[1641423378097,0.71016,3521.6,3521.3,0.00568424]
[1641423378500,0.66016,3521.6,3521.3,0.00568424]
[1641423379499,0.96016,3521.6,3521.3,0.00568424]
[1641423379797,82.6,3521.5,3521.2,0.00124886]
[1641423379999,0.00113684,3521.5,3521.2,0.00124886]
[1641423382047,0.00113684,3521.5,3521.0,0.66504596]
[1641423382245,0.71017,3521.3,3521.0,0.66504596]
[1641423382449,0.71017,3521.3,3521.1,0.00113685]
[1641423383049,102.65,3521.2,3520.1,6.6608]
[1641423383251,0.7104,3520.7,3519.4,3.38550484]
[1641423383551,0.7104,3520.7,3518.7,19.1319]
[1641423383552,1.3104,3520.7,3520.2,0.00511581]
[1641423384695,1.3104,3520.7,3519.4,6.17]
[1641423384696,0.71053,3520.2,3519.4,6.17]
[1641423384997,0.71053,3520.2,3519.1,6.61912467]
[1641423384998,102.35,3520.1,3519.1,2.75532467]
[1641423385196,1.01299527,3520.0,3519.5,7.369e-05]
[1641423385399,3.7478637,3520.0,3519.2,0.00177896]
[1641423385596,0.0022,3519.9,3519.2,7.896e-05]
[1641423385796,0.7107,3519.8,3519.2,7.896e-05]
[1641423385997,0.7107,3519.8,3518.6,0.45]
[1641423385998,1.31403158,3519.8,3518.6,0.45]
[1641423386199,99.65284212,3519.7,3518.6,0.45]
[1641423386398,99.65284212,3519.7,3518.2,2.7456562]
[1641423386399,99.2,3519.1,3518.2,2.7456562]
[1641423386597,99.2,3519.1,3517.5,0.76069365]
[1641423386599,99.2,3518.6,3517.5,0.76069365]
[1641423386797,0.71094,3518.1,3517.5,0.76069365]
[1641423386997,0.71094,3518.1,3517.6,0.00795793]
[1641423387198,1.01094,3518.1,3517.6,0.00795793]
[1641423387399,1.31094,3518.1,3517.6,0.00795793]
[1641423387852,1.31094,3518.1,3517.5,0.00852635]
[1641423388052,2.31094,3518.1,3517.5,0.00852635]
[1641423388252,52.35,3518.0,3516.7,0.56406808]
[1641423388453,0.00284212,3518.0,3517.7,0.00161454]
[1641423388654,0.00227369,3517.9,3517.7,0.00161454]
[1641423389058,0.00170527,3517.8,3517.7,0.00161454]
[1641423389464,29.65170527,3517.8,3517.7,0.00161454]
[1641423389661,69.6,3517.7,3517.6,0.00161454]
[1641423390063,69.60113685,3517.7,3517.6,0.00161454]
[1641423390264,69.60113685,3517.7,3516.7,0.06804704]
[1641423390265,29.65,3517.6,3516.7,0.06804704]
[1641423390463,1.42218,3517.3,3516.7,0.06804704]
[1641423390680,2.02218,3517.3,3516.7,0.06804704]
[1641423390868,0.00227369,3517.2,3516.7,0.06804704]
[1641423391068,99.15,3517.1,3516.7,8.319e-05]
[1641423391262,99.15,3517.1,3515.8,3.034751]
[1641423391263,99.46470003,3517.1,3515.8,3.034751]
[1641423391509,1.4225,3516.6,3515.2,3.8938]
[1641423391690,0.3,3516.6,3515.9,0.00511582]
[1641423391888,0.6,3516.6,3514.9,3.7246]
[1641423392090,0.71131,3515.9,3515.0,0.00511581]
[1641423392290,0.345,3515.8,3515.0,0.00511581]
[1641423392491,1.4229,3515.6,3514.9,0.00568423]
[1641423392695,1.4229,3515.6,3514.6,0.7137971]
[1641423392696,1.4229,3515.6,3514.7,0.00682108]
[1641423392895,2.0229,3515.6,3514.7,0.00682108]
[1641423393093,0.71145,3515.4,3514.7,0.00682108]
[1641423393292,0.345,3515.3,3514.7,0.00682108]
[1641423393493,94.3,3515.2,3514.6,0.663634]
[1641423393692,1.0,3515.1,3514.6,0.663634]
[1641423393894,1.0,3515.1,3513.1,3.0359315]
[1641423393895,2.62833098,3513.7,3513.1,3.0359315]
[1641423394103,1.42315,3515.0,3512.8,2.7410663]
[1641423394104,3.79972926,3513.6,3512.8,2.7410663]
[1641423394397,58.16186,3513.3,3513.2,2.635e-05]
[1641423394595,58.16186,3513.3,3512.8,2.70109265]
[1641423394599,58.76186,3513.3,3512.8,2.70109265]
[1641423394796,1.42393,3513.1,3512.8,2.70109265]
[1641423394994,0.6,3513.1,3512.9,0.00170527]
[1641423395245,0.95745329,3513.1,3512.9,0.00170527]
[1641423395447,0.942078,3513.1,3512.9,0.00170527]
[1641423395652,0.645,3513.1,3511.7,3.38550484]
[1641423395851,89.97416,3513.0,3511.7,3.38550484]
[1641423396051,0.345,3512.9,3512.6,0.00170527]
[1641423396249,0.345,3512.9,3510.8,10.7708]
[1641423396250,88.55,3512.8,3511.5,0.0127805]
[1641423396449,0.345,3512.7,3511.5,0.0127805]
[1641423396753,0.645,3512.7,3511.0,0.13819997]
[1641423397152,1.645,3512.7,3511.1,0.00852635]
[1641423397550,1.4244,3512.4,3511.1,0.00852635]
[1641423397750,0.71215,3512.3,3511.1,0.00852635]
[1641423398151,0.345,3512.2,3511.1,0.00852635]
[1641423398650,0.345,3512.2,3510.7,0.01080005]
[1641423398651,1.42466,3511.8,3510.7,0.01080005]
[1641423398890,0.71227,3511.7,3510.8,53.75]
[1641423399092,0.01220689,3512.6,3510.8,53.75]
[1641423399093,0.345,3512.6,3510.8,53.76246683]
[1641423399295,0.345,3512.6,3511.6,0.01252879]
[1641423399691,0.345,3512.6,3511.7,0.00511581]
[1641423400092,0.345,3512.6,3511.2,0.00795793]
[1641423400495,0.00113685,3512.8,3511.2,0.00795793]
[1641423400496,3.685e-05,3512.8,3512.1,0.01257703]
[1641423400895,3.685e-05,3512.8,3512.2,5.69737369]
[1641423401100,3.685e-05,3512.8,3512.3,3.96527098]
[1641423401299,3.685e-05,3512.8,3512.4,6.0391]
[1641423401498,3.685e-05,3512.8,3512.5,2.96527098]
[1641423401700,3.42464772,3515.1,3512.7,0.01266912]
[1641423401902,3.42464772,3515.1,3512.8,0.345]
[1641423402102,7.896e-05,3513.5,3512.9,2.96527098]
[1641423402308,3.42464772,3515.1,3513.5,0.01277463]
[1641423402509,4.82315832,3515.2,3513.6,6.47539997]
[1641423402753,4.82315832,3516.2,3513.8,50.28046493]
[1641423402956,4.82315832,3516.2,3514.3,4.5]
[1641423403153,1.054e-05,3515.6,3514.4,37.83663494]
[1641423403352,6.43222675,3516.7,3515.6,3.55]
[1641423403353,6.41947254,3516.7,3515.6,3.55]
[1641423403556,6.41947254,3516.7,3515.7,10.13727095]
[1641423403754,6.41947254,3516.7,3515.7,10.84812095]
[1641423403755,4.212e-05,3516.1,3515.7,10.84812095]
[1641423403953,4.212e-05,3516.1,3515.7,7.88284997]
[1641423404153,1.972e-05,3517.2,3515.8,3.26693413]
[1641423404352,1.4218,3518.9,3515.8,3.26693413]
[1641423404353,9.71e-05,3517.8,3516.4,0.01245656]
[1641423404557,9.71e-05,3517.8,3516.6,16.71]
[1641423404558,4.212e-05,3517.1,3516.6,16.71]
[1641423404754,5.266e-05,3517.7,3516.7,36.80169625]
[1641423404957,5.266e-05,3517.7,3517.0,0.01276905]
[1641423405153,5.266e-05,3517.7,3517.2,16.71]
[1641423405354,9.71e-05,3517.8,3517.4,51.76]
[1641423405554,9.71e-05,3517.8,3517.6,16.71]
[1641423405758,9.71e-05,3517.8,3517.5,6.0309]
[1641423405759,9.71e-05,3517.8,3517.7,57.7905]
[1641423406055,9.71e-05,3517.8,3517.7,58.7905]
[1641423407093,9.71e-05,3517.8,3517.7,59.40334734]
[1641423407592,0.71042,3520.9,3517.7,59.40334734]
[1641423407794,1.06695125,3521.0,3518.3,16.71]
[1641423407795,0.01240821,3520.8,3518.3,16.71]
[1641423407993,0.01193689,3519.8,3518.4,4.41593386]
[1641423408192,0.01193689,3519.8,3518.4,5.41593386]
[1641423408392,0.01136847,3519.7,3518.4,5.41593386]
[1641423408592,0.01136847,3519.7,3518.5,16.71]
[1641423408793,0.01080004,3519.6,3518.6,3.08751924]
[1641423408994,0.01080004,3519.6,3518.4,4.10207645]
[1641423409197,0.01023162,3519.5,3517.7,5.69834734]
[1641423409394,0.07578061,3519.5,3517.7,5.6855]
[1641423409597,0.01273822,3518.9,3517.7,5.6855]
[1641423409993,0.07180164,3518.8,3517.7,5.6855]
[1641423410239,0.07180164,3518.8,3517.8,0.00115495]
[1641423410441,0.31273822,3518.9,3517.8,0.00115495]
[1641423410442,0.00568423,3518.7,3517.8,0.00115495]
[1641423410641,0.71096,3518.5,3517.8,0.00115495]
[1641423410847,1.01096,3518.5,3517.8,0.00115495]
[1641423411048,0.01217965,3518.1,3517.5,3.685e-05]
[1641423411446,0.01217965,3518.1,3516.6,0.00515266]
[1641423411447,0.06835426,3518.0,3516.6,0.00515266]
[1641423411844,0.41278583,3517.9,3516.6,0.00515266]
[1641423412045,0.71278583,3517.9,3516.6,0.00515266]
[1641423412248,0.71278583,3517.9,3516.2,0.00742636]
[1641423412249,0.06721741,3517.8,3516.2,0.00742636]
[1641423412447,0.345,3517.7,3516.2,0.00742636]
[1641423412649,0.71164899,3517.7,3516.2,0.00742636]
[1641423412847,0.06554899,3517.6,3516.2,0.00742636]
[1641423413049,0.345,3517.5,3516.2,0.00742636]
[1641423413248,0.345,3517.5,3515.4,2.76348958]
[1641423413249,0.31250695,3517.3,3515.8,0.00970005]
[1641423413449,0.345,3517.2,3515.8,0.00970005]
[1641423413647,101.8,3517.1,3515.4,2.6613896]
[1641423413925,101.8,3517.1,3515.5,0.00170527]
[1641423413926,0.71131,3516.9,3515.5,0.00170527]
[1641423414320,0.00568424,3516.8,3514.4,16.71]
[1641423414520,0.0119369,3516.8,3514.4,16.84819997]
[1641423414721,0.345,3517.2,3514.5,0.00113684]
[1641423414722,0.01136847,3516.7,3514.5,0.00113684]
[1641423415120,0.01080005,3516.6,3514.5,0.00113684]
[1641423415624,0.01023163,3516.5,3514.5,0.00113684]
[1641423415825,0.01023163,3516.5,3515.1,0.01200823]
[1641423416028,0.0096632,3516.4,3515.1,0.01200823]
[1641423416428,0.72368695,3517.3,3515.1,0.01200823]
[1641423416429,0.00909478,3516.3,3515.1,0.01200823]
[1641423416628,0.00909478,3516.3,3514.5,0.00113684]
[1641423416828,0.00852635,3516.2,3514.5,0.00113684]
[1641423417228,0.00795793,3516.1,3514.5,0.00113684]
[1641423417432,0.00795793,3516.1,3514.5,0.50113684]
[1641423417640,0.01250695,3517.3,3514.5,16.71113684]
[1641423417641,0.00738951,3516.0,3514.5,16.71113684]
[1641423417839,0.00738951,3516.0,3514.5,0.00113684]
[1641423418041,0.00682108,3515.9,3514.5,0.00113684]
[1641423418441,1.345,3517.5,3514.5,0.00113684]
[1641423418442,0.00625266,3515.8,3514.5,0.00113684]
[1641423418845,0.00568424,3515.7,3514.5,0.00113684]
[1641423419244,0.00511581,3515.6,3514.5,16.71113684]
[1641423419444,0.00511581,3515.6,3514.6,0.7111136]
[1641423419643,0.00454739,3515.5,3514.8,16.71]
[1641423419842,0.00454739,3515.5,3514.8,17.055]
[1641423420048,0.00397897,3515.4,3514.8,17.055]
[1641423420443,0.01264872,3517.2,3514.8,17.055]
[1641423420444,0.00341054,3515.3,3514.8,17.055]
[1641423420848,0.00284212,3515.2,3514.8,17.055]
[1641423421247,0.0022737,3515.1,3514.8,17.055]
[1641423421688,0.01264872,3517.2,3515.0,56.25829473]
[1641423421887,0.01264872,3517.2,3515.1,4.20075106]
[1641423422088,0.0119369,3517.1,3515.2,17.06547597]
[1641423422292,0.0119369,3517.1,3516.1,0.01290854]
[1641423422495,0.01136847,3517.0,3516.2,16.70829473]
[1641423422698,0.01136847,3517.0,3516.3,3.07798376]
[1641423422892,4.82330965,3518.4,3516.3,0.71079]
[1641423422893,0.01080005,3516.9,3516.3,0.71079]
[1641423423093,0.01080005,3516.9,3516.4,18.05329473]
[1641423423293,0.01023163,3516.8,3516.4,0.345]
[1641423423494,0.01023163,3516.8,3516.5,2.76112869]
[1641423423693,0.0096632,3516.7,3516.5,2.76112869]
[1641423424192,0.01298517,3518.8,3516.5,2.76112869]
[1641423424193,9.478e-05,3516.6,3516.5,59.82112869]
[1641423424394,9.478e-05,3516.6,3516.5,65.86592715]
[1641423424592,4.82330965,3518.6,3516.5,63.10479846]
[1641423424793,4.82330965,3518.6,3516.6,3.07798376]
[1641423424994,4.82330965,3518.6,3516.9,0.5]
[1641423425248,4.82330965,3518.6,3517.0,16.71]
[1641423425445,4.82330965,3518.6,3517.1,3.42298376]
[1641423425649,4.82330965,3518.6,3517.3,16.71]
[1641423425845,4.82330965,3518.6,3517.5,16.71]
[1641423426147,0.01193689,3518.7,3517.9,0.7105]
[1641423426545,0.01136847,3518.6,3517.9,0.7105]
[1641423426748,0.01136847,3518.6,3518.0,3.36040514]
[1641423426948,0.01080004,3518.5,3518.0,3.36040514]
[1641423427347,0.01023162,3518.4,3518.1,17.055]
[1641423427547,0.01023162,3518.4,3518.2,3.74576471]
[1641423427754,4.82330965,3520.1,3518.4,16.71]
[1641423427950,4.82330965,3520.1,3518.3,40.3]
[1641423427951,4.82330965,3520.1,3518.9,16.71]
[1641423428148,0.00795793,3519.8,3519.0,3.4578354]
[1641423428347,0.00795793,3519.8,3519.0,20.1678354]
[1641423428548,0.00738951,3519.7,3519.0,20.1678354]
[1641423428996,0.00682108,3519.6,3519.0,20.1678354]
[1641423429400,0.00625266,3519.5,3519.0,20.1678354]
[1641423429598,0.00625266,3519.5,3519.0,16.71]
[1641423429798,0.00568424,3519.4,3518.6,0.345]
[1641423429998,0.00568424,3519.4,3518.7,3.1246127]
[1641423430205,6.44025164,3520.9,3519.0,16.71]
[1641423430206,0.00511581,3519.3,3519.0,16.71]
[1641423430407,0.00511581,3519.3,3519.1,0.345]
[1641423430703,4.82330965,3520.5,3519.2,62.6931]
[1641423431103,0.00285793,3519.8,3519.2,62.6931]
[1641423431302,0.00285793,3519.8,3519.2,22.3931]
[1641423431504,0.00228951,3519.7,3519.5,0.7102013]
[1641423431702,0.00228951,3519.7,3519.2,22.3931]
[1641423431703,0.00228951,3519.7,3519.3,16.71]
[1641423431905,0.00172108,3519.6,3519.2,5.6831]
[1641423432402,4.82330965,3520.8,3519.2,5.6831]
[1641423432403,0.00115266,3519.5,3519.2,5.6831]
[1641423432644,0.00115266,3519.5,3519.3,16.71]
[1641423433051,0.00115266,3519.5,3519.2,5.6831]
[1641423433748,0.00115266,3519.5,3519.3,19.71357495]
[1641423433948,0.00115266,3519.5,3519.4,5.6828]
[1641423434348,0.00115266,3519.5,3519.4,22.3928]
[1641423435655,4.82330965,3520.9,3519.4,22.3928]
[1641423435656,4.82330965,3520.9,3520.0,16.71]
[1641423435852,4.82330965,3520.9,3520.3,0.71]
[1641423436051,6.42769938,3521.4,3520.3,0.71005]
[1641423436052,4.82330965,3520.8,3520.3,0.71005]
[1641423436252,4.18730965,3520.8,3520.3,0.71005]
[1641423437003,6.437931,3521.3,3520.3,17.42005]
[1641423437204,6.437931,3521.3,3520.3,0.71005]
[1641423437404,0.0096632,3521.2,3520.3,0.71005]
[1641423437805,0.00909477,3521.1,3520.4,4.08322219]
[1641423438216,0.00852635,3521.0,3520.4,4.08322219]
[1641423438607,0.00795793,3520.9,3520.5,16.71]
[1641423438807,0.00795793,3520.9,3520.6,3.24743751]
[1641423439005,0.00795793,3520.9,3520.2,4.63819997]
[1641423439006,0.0073895,3520.8,3520.4,3.30412058]
[1641423439406,0.00682108,3520.7,3520.4,3.30412058]
[1641423439606,0.00682108,3520.7,3520.5,0.71007]
[1641423439808,0.00625266,3520.6,3520.5,0.71007]
[1641423440239,0.00625266,3520.6,3520.2,4.63819997]
[1641423440441,0.00625266,3520.6,3520.3,5.6813]
[1641423440641,0.00568423,3520.5,3520.3,5.6813]
[1641423441038,0.01215238,3522.0,3520.3,5.6813]
[1641423441039,0.00511581,3520.4,3520.3,5.6813]
[1641423442044,0.00511581,3520.4,3520.3,45.9313]
[1641423442245,1.581e-05,3520.4,3520.3,45.9313]
[1641423442445,1.581e-05,3520.4,3520.3,62.6413]
[1641423443348,1.581e-05,3520.4,3520.3,5.6813]
[1641423443746,1.581e-05,3520.4,3520.3,8.69449458]
[1641423443987,1.581e-05,3520.4,3520.3,49.28949458]
[1641423444690,1.581e-05,3520.4,3520.3,46.2763]
[1641423444894,1.581e-05,3520.4,3520.3,62.9863]
[1641423445091,1.581e-05,3520.4,3520.3,46.2763]
[1641423445693,1.581e-05,3520.4,3520.3,62.9863]
[1641423446692,1.581e-05,3520.4,3520.3,62.99853088]
[1641423446893,1.581e-05,3520.4,3520.3,63.06407987]
[1641423447496,1.0137971,3522.1,3521.0,0.70999]
[1641423447937,0.00909478,3522.0,3521.0,0.70999]
[1641423448342,0.00852635,3521.9,3520.9,0.345]
[1641423448745,0.97175503,3522.1,3521.0,40.25]
[1641423448944,0.97175503,3522.1,3521.0,0.70999]
[1641423449245,0.00113685,3522.0,3521.0,0.71453739]
[1641423449448,0.77289188,3522.1,3521.1,27.35]
[1641423449645,0.77289188,3522.1,3521.1,0.00397897]
[1641423449646,0.7137971,3522.1,3521.1,0.00397897]
[1641423449847,1.0137971,3522.1,3521.2,0.00454739]
[1641423450048,1.0137971,3522.1,3521.0,0.00568424]
[1641423450248,1.0137971,3522.1,3520.4,0.00909478]
[1641423451052,0.71023,3521.7,3520.4,0.00909478]
[1641423451248,1.01023,3521.7,3520.4,0.00909478]
[1641423451495,1.31023,3521.7,3520.4,0.00909478]
[1641423452996,0.3,3521.7,3520.4,0.00909478]
[1641423453395,1.31018,3522.0,3520.4,0.00909478]
[1641423453999,1.31018,3522.0,3520.6,0.71011]
[1641423454000,0.3,3522.0,3520.6,0.71011]
[1641423454498,0.7137971,3522.1,3520.7,0.00738951]
[1641423455666,1.3137971,3522.1,3520.5,16.71852636]
[1641423455865,1.3137971,3522.1,3520.6,0.00795793]
[1641423457166,0.71013,3521.7,3520.6,0.00795793]
[1641423457366,0.7137971,3522.1,3520.6,0.00795793]
[1641423458469,1.3137971,3522.1,3520.6,0.00795793]
[1641423458900,1.42016,3522.0,3520.6,0.00795793]
[1641423460092,0.7101,3521.7,3520.6,0.00795793]
[1641423460691,0.7101,3521.7,3520.6,16.71795793]
[1641423460898,1.0137971,3522.1,3520.6,0.00795793]
[1641423461093,1.0137971,3522.1,3520.7,0.00738951]
[1641423461293,1.0137971,3522.1,3520.6,0.00795793]
[1641423461793,1.3137971,3522.1,3520.6,0.00795793]
[1641423462196,0.71011,3521.4,3520.6,0.00795793]
[1641423466695,0.71011,3521.4,3520.6,16.71795793]
[1641423467194,0.71011,3521.4,3520.7,0.00738951]
[1641423468397,0.71005,3521.6,3520.7,0.00738951]
[1641423469296,0.71005,3521.6,3520.7,16.71738951]
[1641423469697,0.71005,3521.6,3520.8,0.00682109]
[1641423471543,0.71005,3521.6,3520.6,16.71795793]
[1641423471742,0.71005,3521.6,3520.7,0.00738951]
[1641423472147,0.71005,3521.6,3520.9,16.71]
[1641423472347,0.71,3521.8,3520.9,17.41999]
[1641423472547,0.71,3521.8,3521.0,0.00568424]
[1641423472948,1.01,3521.8,3521.0,0.00568424]
[1641423473247,1.01,3521.8,3520.3,6.0263]
[1641423473248,0.6,3521.8,3520.4,0.00909478]
[1641423473447,0.71015,3521.1,3520.4,0.00909478]
[1641423474698,0.71015,3521.1,3520.4,16.71909478]
[1641423475098,0.71015,3521.1,3520.5,0.00852636]
[1641423475499,0.71015,3521.1,3520.4,0.00909478]
[1641423477205,0.71011,3521.4,3520.4,0.00909478]